[Event "13th KIIT Festival-A 2022"]
[Site "Bhubaneswar"]
[Date "2022.05.23"]
[Round "2.4"]
[White "Sahib Singh"]
[Black "Savchenko, Boris"]
[Result "0-1"]
[ECO "B25"]
[WhiteElo "1991"]
[BlackElo "2524"]
[Annotator "TA"]
[PlyCount "120"]
[EventDate "2022.05.15"]
[EventType "swiss"]
[EventCountry "IND"]
[SourceTitle "playchess.com"]
[Source "ChessBase"]
[SourceQuality "1"]
[TimeControl "5400+30"]

{[%evp 18,120,-10,-3,0,-6,-20,-12,0,0,15,-2,7,0,0,0,0,7,29,31,27,0,0,0,-4,-12,23,4,36,28,39,0,0,-15,-8,-43,-56,-78,-90,-90,-91,-87,-89,-79,-56,-58,-70,-81,-79,-72,-92,-107,-86,-114,-94,-131,-119,-118,-133,-121,-79,-75,-76,-69,-78,-427,-445,-437,-427,-414,-364,-657,-751,-639,-468,-450,-435,-1574,-1197,-5695,-5281,-1902,-1740,-29963,-29966,-29971,-29971,-29971,-29969,-29968,-29969,-29966,-4634,-29971,-29972,-29972,-29973,-29973,-29974,-29976,-29975,-29975,-29975,-29974,-5130]} 1. e4 {[%emt 0:00:02]} c5 {[%emt 0:00:05]} 2. Nc3 {[%emt 0:00:08]} g6 {[%emt 0:00:10]} 3. f4 {[%emt 0:00:11]} Bg7 {[%emt 0:00:07]} 4. Nf3 {[%emt 0:00:07]} Nc6 {[%emt 0:00:59]} 5. g3 {[%emt 0:00:44]} d6 {[%emt 0:00:18]} 6. Bg2 {[%emt 0:00:07]} Rb8 {[%emt 0:00:07]} 7. O-O {[%emt 0:02:59]} b5 {[%emt 0:00:17][%cal Bb7b5,Bb5b4][%mdl 32]} 8. d3 {[%emt 0:10:00]} Nf6 {[%emt 0:03:19]} 9. h3 {[%emt 0:02:01]} O-O {[%emt 0:00:22]} 10. g4 $1 {[%emt 0:03:01]} a5 {[%emt 0:01:57] B25: Closed Sicilian: 3 g3, lines without early Be3.} 11. Rb1 {[%emt 0:07:44]} b4 {[%emt 0:00:42]} 12. Ne2 {[%emt 0:00:30]} c4 {[%emt 0:05:40][%cal Ob4b3] The position is equal.} 13. Be3 {[%emt 0:05:54]} Ba6 {[%emt 0:00:27] [#]} 14. Ng3 $146 {[%emt 0:03:22]} ({Predecessor:} 14. b3 cxd3 15. cxd3 Nd7 16. d4 e5 17. Rf2 Qb6 18. Qd2 exd4 19. Nexd4 Nxd4 20. Nxd4 {0-1 (29) Boyer,M (2412)-Korobov,A (2683) Chess.com INT 2021}) 14... a4 {[%emt 0:08:22]} 15. Rf2 {[%emt 0:14:15]} b3 {[%emt 0:04:25]} 16. axb3 {[%emt 0:00:26]} cxd3 {[%emt 0:12:19]} 17. bxa4 {[%emt 0:08:35]} Nb4 {[%emt 0:01:30]} 18. c3 {[%emt 0:07:03]} Nc2 {[%emt 0:00:13]} 19. Rxc2 {[%emt 0:06:27]} dxc2 {[%emt 0:00:31]} 20. Qxc2 {[%emt 0:00:04]} Qc7 {[%emt 0:01:47]} 21. b3 {[%emt 0:06:26]} d5 {[%emt 0:03:56]} 22. e5 {[%emt 0:04:01]} Ne4 {[%emt 0:00:10]} 23. Nxe4 {[%emt 0:00:15]} dxe4 {[%emt 0:00:06]} 24. Qxe4 {[%emt 0:03:22]} (24. Ne1 $14) 24... Qxc3 $11 {[%emt 0:00:23]} 25. Bd2 $1 {[%emt 0:00:36]} Qc5+ {[%emt 0:07:47][%mdl 1024] Black has compensation.} 26. Qd4 {[%emt 0:04:10]} (26. Be3 $5 {[%cal Re3c5]} Qc3 27. Bd4 $11) 26... Qc2 {[%emt 0:00:48][%csl LRb1,LRb3]} 27. Rb2 {[%emt 0:00:04]} Qd1+ {[%emt 0:01:21]} 28. Be1 {[%emt 0:00:07]} Rfd8 {[%emt 0:02:21][%cal Bf8d8,Bd8d1,Bd1a1][%mdl 32]} 29. Qxd1 {[%emt 0:00:05]} Rxd1 {[%emt 0:00:04]} 30. b4 {[%emt 0:03:48]} Ra1 {[%emt 0:00:26] Hoping for ...g5.} 31. Kf2 $1 {[%emt 0:01:22]} f6 {[%emt 0:02:15] Strongly threatening ...fxe5.} 32. Bc3 {[%emt 0:00:52]} Rxa4 {[%emt 0:05:53] Black is more active.} 33. Nd4 {[%emt 0:01:08]} Bb7 {[%emt 0:00:36]} 34. Nc6 {[%emt 0:00:46]} Bxc6 {[%emt 0:01:04]} ({Much weaker is} 34... Re8 $6 35. Nxe7+ Rxe7 36. exf6 $11) 35. Bxc6 {[%emt 0:00:06]} Ra3 {[%emt 0:00:04]} 36. Rb3 {[%emt 0:00:22][%mdl 64] Decoy} Rxb3 {[%emt 0:05:05]} 37. Bd5+ {[%emt 0:00:04] A strong pair of Bishops.} Kf8 {[%emt 0:00:07]} 38. Bxb3 {[%emt 0:00:03]} fxe5 {[%emt 0:00:32]} 39. fxe5 $17 {[%emt 0:00:05][%mdl 4096] Endgame KRB-KB} Rc8 {[%emt 0:00:23]} 40. Bd4 {[%emt 0:00:14]} Rc1 {[%emt 0:03:07] ...Rb1 is the strong threat.} 41. Bd5 $2 {[%emt 0:00:04][%mdl 8192] White does not recover from this.} (41. Be6 $17) 41... Rd1 $19 {[%emt 0:01:30]} 42. Ke3 {[%emt 0:00:06] [#]} Bxe5 $3 {[%emt 0:00:25][%mdl 512]} 43. Bxe5 {[%emt 0:00:04]} Rxd5 {[%emt 0:00:08] KR-KB} 44. Bd4 {[%emt 0:00:22]} (44. Ke4 Rd1 45. h4) 44... e5 {[%emt 0:00:56]} 45. Bc5+ {[%emt 0:01:11]} Kf7 {[%emt 0:00:07] White must now prevent ...Ke6.} 46. Ke4 {[%emt 0:00:03]} Ke6 {[%emt 0:00:06]} 47. h4 {[%emt 0:00:45]} (47. Be3 $142) 47... Rd1 {[%emt 0:00:10]} 48. Bf2 {[%emt 0:01:39]} Rb1 {[%emt 0:00:11] And now ...h5 would win.} 49. Bc5 {[%emt 0:00:04]} h5 {[%emt 0:00:07]} 50. gxh5 {[%emt 0:01:00]} gxh5 {[%emt 0:00:06]} 51. Kf3 {[%emt 0:01:37]} Kd5 {[%emt 0:00:06]} 52. Ke3 {[%emt 0:00:33]} Rh1 {[%emt 0:01:17]} 53. Be7 {[%emt 0:00:14]} Ke6 {[%emt 0:00:07]} 54. Bd8 {[%emt 0:02:24]} Rh3+ {[%emt 0:02:16]} (54... Rc1 $142 55. b5 Rc8 56. Ba5 Rc5 57. Ke4 Rxb5 58. Bd8 Rb8 59. Ba5 Rb3 60. Bd2 Rh3 61. Bg5 Ra3 62. Bd8 Ra8 63. Bg5 Rg8 64. Bh6 Rg4+ 65. Kf3 Rxh4 66. Bg5 Rd4 67. Bh6 Rg4 68. Be3 e4+ 69. Ke2 h4 70. Bb6 h3 71. Bc7 Rg2+ 72. Ke3 Kd5 73. Bf4 h2 74. Bxh2 Rxh2 75. Kf4 Rf2+ 76. Ke3 Rf3+ 77. Kd2 Kc4 78. Kc2 e3 79. Kd1 Rf2 80. Kc1 Rd2 81. Kb1 e2 82. Kc1 e1=Q#) 55. Ke4 {[%emt 0:01:01]} Rc3 {[%emt 0:00:13] Black mates.} 56. b5 {[%emt 0:00:08]} Rc8 {[%emt 0:00:24]} 57. Bg5 {[%emt 0:00:51]} Rb8 {[%emt 0:00:06]} 58. Ke3 {[%emt 0:00:08]} Rxb5 {[%emt 0:00:07]} 59. Ke4 {[%emt 0:00:06]} Rb4+ {[%emt 0:00:27]} 60. Ke3 {[%emt 0:00:10]} Kf5 {[%emt 0:00:04] Weighted Error Value: White=0.65/Black=0.17 (very precise)} (60... Kd5 $142 61. Kd2 Rb3 62. Bf6 Kd4 63. Ke1 Rb2 64. Kf1 Ke4 65. Bg7 Kf3 66. Ke1 Rh2 67. Kd1 e4 68. Bc3 e3 69. Ba5 Rxh4 70. Kc2 Ra4 71. Bd8 h4 72. Bf6 e2 73. Bc3 h3 74. Be1 h2 75. Kb3 {[#]} h1=Q $1 76. Kxa4 Qxe1 77. Kb3 Qa5 78. Kc2 Qa2+ 79. Kd3 e1=Q 80. Kd4 Qe3#) 0-1

[Event "13th KIIT Festival-A 2022"]
[Site "Bhubaneswar"]
[Date "2022.05.23"]
[Round "2.5"]
[White "Atul, Kumar"]
[Black "Aleksandrov, Aleksej"]
[Result "0-1"]
[ECO "A03"]
[WhiteElo "1953"]
[BlackElo "2492"]
[Annotator "TA"]
[PlyCount "70"]
[EventDate "2022.05.15"]
[EventType "swiss"]
[EventCountry "IND"]
[SourceTitle "playchess.com"]
[Source "ChessBase"]
[SourceQuality "1"]
[TimeControl "5400+30"]

{[%evp 9,70,9,32,-46,-28,-43,-31,-58,-57,-91,-69,-92,-87,-105,-100,-95,-94,-98,-18,-163,-159,-203,-202,-201,-200,-238,-237,-283,-245,-245,-176,-168,-174,-183,-193,-208,-113,-192,-205,-220,-206,-201,-149,-159,-140,-166,-143,-143,-139,-173,-155,-178,-182,-351,-327,-333,-327,-446,-294,-469,-429,-5135,-3038]} 1. f4 {[%emt 0:00:11]} d5 {[%emt 0:00:10]} 2. Nf3 {[%emt 0:00:13]} Nf6 {[%emt 0:00:11]} 3. e3 {[%emt 0:00:12]} Bg4 {[%emt 0:00:32]} 4. h3 {[%emt 0:00:28]} Bxf3 {[%emt 0:00:12]} 5. Qxf3 {[%emt 0:00:06]} Nbd7 {[%emt 0:01:52]} 6. c4 {[%emt 0:07:22] A03: Bird's Opening with 1...d5.} (6. g4 $14) 6... e5 $15 {[%emt 0:02:49]} 7. Nc3 {[%emt 0:09:34] [#]} exf4 $146 {[%emt 0:05:14]} ({Predecessor:} 7... e4 8. Qf2 dxc4 9. Bxc4 Nc5 10. d4 exd3 11. Qf3 c6 12. Bd2 a5 13. Rd1 Be7 {1-0 (44) Ruf,M-Balzar,A Neunkirchen 1986}) 8. exf4 {[%emt 0:03:03] Black is slightly better.} Bc5 {[%emt 0:04:38]} 9. cxd5 {[%emt 0:08:51]} O-O {[%emt 0:00:10]} 10. Bc4 {[%emt 0:07:36]} Nb6 {[%emt 0:02:42]} 11. Bb3 {[%emt 0:02:02]} Qd7 {[%emt 0:00:06]} 12. d3 {[%emt 0:02:46]} Rad8 {[%emt 0:00:09] Black is more active.} 13. Bd2 {[%emt 0:12:25]} Nfxd5 {[%emt 0:06:55]} ({Better is} 13... Rfe8+ $17 14. Ne4 Nxe4 15. dxe4 Rxe4+ $3 {[%mdl 512]} 16. Qxe4 Re8 17. Qxe8+ Qxe8+ 18. Kd1 Nxd5 $1 19. Bxd5 Qd7) 14. Ne4 {[%emt 0:03:51]} (14. O-O-O $11 {and White stays safe.}) 14... Bd4 $19 {[%emt 0:00:44]} 15. Bc3 {[%emt 0:15:52]} Ne3 {[%emt 0:05:08] Pair of Knights!} 16. Ke2 {[%emt 0:13:11] [#]} Bxc3 {[%emt 0:00:51]} 17. Qxe3 {[%emt 0:00:45]} Bxb2 {[%emt 0:00:20]} 18. Rad1 {[%emt 0:00:52]} a5 {[%emt 0:02:26]} 19. Qd2 {[%emt 0:01:18]} a4 {[%emt 0:01:53]} 20. Qxb2 {[%emt 0:03:08]} axb3 {[%emt 0:00:02]} 21. Qxb3 {[%emt 0:02:39]} Nd5 {[%emt 0:00:12]} 22. Rhf1 {[%emt 0:01:52] [#]} Qf5 {[%emt 0:00:22]} (22... Rfe8 $1 $19 {aiming for ...f5.} 23. Rf3 f5) 23. g4 {[%emt 0:02:27]} (23. Rf3 $17 {keeps fighting.}) 23... Qg6 {[%emt 0:02:20]} ({Don't do} 23... Nxf4+ 24. Kf3 Qe5 25. d4 Rxd4 26. Rxd4 Qxd4 27. Kxf4 $16) 24. Rf3 {[%emt 0:00:38]} ({Don't blunder} 24. Qxb7 $2 f5 25. gxf5 Qg2+ 26. Ke1 Ne3 27. Nf6+ Rxf6 28. Qxg2 Nxg2+ 29. Kf2 Nxf4 $19) 24... f5 {[%emt 0:00:49]} 25. gxf5 {[%emt 0:00:30]} Rxf5 {[%emt 0:01:01] Strongly threatening ...Qg2+.} 26. Rdf1 {[%emt 0:00:46]} b6 {[%emt 0:00:45]} 27. Nc3 {[%emt 0:00:42]} h6 {[%emt 0:00:47]} 28. Nxd5 {[%emt 0:00:30]} Rdxd5 {[%emt 0:00:12]} 29. Qc4 {[%emt 0:00:21]} Kh7 {[%emt 0:00:29]} 30. R1f2 {[%emt 0:00:38]} c5 {[%emt 0:00:56][%cal Bc7c5,Bc5c4,Bc4d3][%mdl 32]} 31. Kd2 $2 {[%emt 0:00:27]} (31. Qe4) 31... Rd4 {[%emt 0:00:42]} 32. Qc3 {[%emt 0:00:29]} b5 {[%emt 0:03:08]} 33. Kc2 {[%emt 0:00:32]} Qf6 {[%emt 0:03:37]} 34. Re2 {[%emt 0:00:32]} (34. Kb1 $142) 34... c4 {[%emt 0:00:59]} 35. Re4 {[%emt 0:00:34]} (35. Kb1 $142 Rfxf4 36. Rxf4 Qxf4 37. dxc4) 35... cxd3+ {[%emt 0:00:15] Weighted Error Value: White=0.65/Black=0.17 (very precise)} 0-1

[Event "13th KIIT Festival-A 2022"]
[Site "Bhubaneswar"]
[Date "2022.05.23"]
[Round "2.6"]
[White "Nikitenko, Mihail"]
[Black "Koustav Chakraborty"]
[Result "1-0"]
[ECO "B77"]
[WhiteElo "2479"]
[BlackElo "1945"]
[Annotator "TA"]
[PlyCount "91"]
[EventDate "2022.05.15"]
[EventType "swiss"]
[EventCountry "IND"]
[SourceTitle "playchess.com"]
[Source "ChessBase"]
[SourceQuality "1"]
[TimeControl "5400+30"]

{[%evp 23,91,22,38,0,44,40,60,61,82,69,75,-21,70,68,80,67,84,20,12,12,12,-9,12,12,211,200,181,186,226,225,235,161,154,144,137,65,0,0,0,-3,-6,-3,0,0,0,0,0,-3,4,0,5,8,8,8,8,5,8,8,80,80,83,8,660,620,620,620,1559,635,29978,29977]} 1. e4 {[%emt 0:00:06]} c5 {[%emt 0:00:10]} 2. Nf3 {[%emt 0:00:08]} d6 {[%emt 0:00:04]} 3. d4 {[%emt 0:00:09]} cxd4 {[%emt 0:00:06]} 4. Nxd4 {[%emt 0:00:03]} Nf6 {[%emt 0:00:08]} 5. Nc3 {[%emt 0:00:04]} g6 {[%emt 0:00:05]} 6. Be3 {[%emt 0:00:11]} Bg7 {[%emt 0:00:07]} 7. f3 {[%emt 0:00:48]} O-O {[%emt 0:00:07]} 8. Bc4 {[%emt 0:00:48]} Nc6 {[%emt 0:00:06]} 9. Bb3 {[%emt 0:00:04]} Bd7 {[%emt 0:00:06]} 10. h4 {[%emt 0:00:04]} Nxd4 {[%emt 0:02:34]} 11. Bxd4 {[%emt 0:01:06]} b5 {[%emt 0:00:32]} 12. Qd2 {[%emt 0:01:17]} a5 {[%emt 0:00:13]} 13. a3 {[%emt 0:05:47][%cal Oh4h5] B77: Sicilian Dragon: Yugoslav Attack, 9 Bc4 sidelines.} (13. h5 {is more complex.} a4 14. Bd5 b4 15. Bxf6 exf6 16. Ne2) 13... e5 {[%emt 0:22:46]} (13... b4 {is interesting.} 14. Nd5 a4 15. Bc4 bxa3 16. Rxa3 e6) 14. Be3 {[%emt 0:00:06] [#]} Be6 $146 {[%emt 0:01:42]} ({Predecessor:} 14... b4 15. Nd5 a4 16. Bc4 bxa3 17. Rxa3 Rb8 18. b3 axb3 19. cxb3 Nxd5 20. Bxd5 Be6 {1-0 (46) Ivanchuk,V (2475)-Pigusov,E (2500) Minsk 1986}) 15. Bxe6 {[%emt 0:08:12] White is slightly better.} fxe6 {[%emt 0:00:06]} 16. Nxb5 {[%emt 0:01:08]} d5 {[%emt 0:00:05]} 17. c4 {[%emt 0:00:52]} (17. exd5 $16 Rb8 18. a4) 17... d4 {[%emt 0:03:44]} ({Better is} 17... dxe4 $11 18. Qxd8 Rfxd8) 18. Bg5 $14 {[%emt 0:00:36][%cal Oh4h5]} Qc8 {[%emt 0:07:47]} 19. Rc1 {[%emt 0:00:25]} a4 {[%emt 0:00:15]} 20. Qb4 {[%emt 0:04:56]} (20. Rc2 $16) 20... h6 $11 {[%emt 0:12:43]} 21. Bxf6 {[%emt 0:02:13]} Bxf6 {[%emt 0:00:11]} 22. g3 {[%emt 0:02:07]} Bd8 {[%emt 0:03:38] Hoping for ...Ba5.} 23. O-O {[%emt 0:01:12]} Ra6 $2 {[%emt 0:08:01]} (23... Qc6 $11) 24. c5 $1 $18 {[%emt 0:04:39]} Qc6 {[%emt 0:07:39] [#]} 25. Qc4 $1 {[%emt 0:01:06]} Rf6 {[%emt 0:05:35]} 26. Nd6 {[%emt 0:00:35]} g5 {[%emt 0:04:28] Against f4} 27. hxg5 {[%emt 0:00:38]} hxg5 {[%emt 0:00:26] [#]} 28. Kg2 $1 {[%emt 0:02:12]} Be7 {[%emt 0:00:50]} 29. Ne8 {[%emt 0:02:58] 0x0.001b5acac0e5dp-1022s more active pieces.} Rg6 $1 $14 {[%emt 0:00:18]} 30. Rh1 {[%emt 0:04:09][%cal Og3g4]} g4 {[%emt 0:01:56]} (30... Ra8 $5 31. Nd6 g4 $14) 31. Rh5 {[%emt 0:01:51][%cal Oc1h1] And now Rch1! would win.} gxf3+ {[%emt 0:01:32]} (31... Kf7 $5 32. Nd6+ Bxd6 33. cxd6 gxf3+ 34. Kxf3 Rf6+ 35. Kg4 Qxe4+ 36. Kh3 Kg6 $11) 32. Kf2 $1 {[%emt 0:04:17][%cal Oc1h1,Bg2f2,Bf2f1,Bf1e2,Be2d3][%mdl 32] aiming for Rch1!} Ra8 {[%emt 0:03:49]} (32... Qxe4 33. Rch1 Qe3+ 34. Kf1) (32... Kf7 $5 33. Nd6+ (33. Nc7 $2 Qxe4 34. Rch1 Qe3+ 35. Kf1 Rc6 $19) 33... Bxd6 34. cxd6 Qxc4 35. Rxc4 Rxd6 $11) 33. Nd6 {[%emt 0:01:31] Really sharp!} Bxd6 {[%emt 0:01:02]} 34. cxd6 {[%emt 0:00:04]} Qxe4 {[%emt 0:05:24]} 35. Rch1 $1 {[%emt 0:00:03]} Qe3+ {[%emt 0:02:22]} 36. Kf1 {[%emt 0:00:05] Threatens to win with Rh8+.} Qe2+ {[%emt 0:01:45]} (36... d3 37. Rh8+ Kg7 38. Qc7+ (38. R1h7+ Kf6 $11) 38... Kf6 39. Qe7+ Kf5 40. R8h5+) 37. Qxe2 {[%emt 0:00:05]} fxe2+ {[%emt 0:00:03]} 38. Kxe2 $11 {[%emt 0:00:06][%mdl 4096] Endgame White wants to mate with Rh8+. KRR-KRR} Kf7 {[%emt 0:03:10]} 39. Rh8 {[%emt 0:00:06]} Rgg8 {[%emt 0:00:03]} 40. Rf1+ {[%emt 0:00:07]} Kg7 {[%emt 0:00:33]} (40... Kg6 $11 41. Rxg8+ Rxg8) 41. Rh4 $16 {[%emt 0:00:04] Rg4+ would kill now.} Kg6 {[%emt 0:00:43]} 42. Kd3 {[%emt 0:00:39]} ({White should try} 42. Rg4+ $16 Kh5 43. Rxg8 Rxg8 44. Kd3) 42... Rgf8 $2 {[%emt 0:01:46][%mdl 8192]} (42... Rgd8 $11) 43. Rxf8 $18 {[%emt 0:00:50]} Rxf8 {[%emt 0:00:04]} 44. Ke4 {[%emt 0:00:04] Inhibits Rf3.} d3 {[%emt 0:02:13]} 45. Kxe5 {[%emt 0:00:15] Threatening mate with Rg4+.} Kf7 {[%emt 0:00:46]} 46. Rf4+ {[%emt 0:00:19] Weighted Error Value: White=0.17 (very precise) /Black=0.69} 1-0

[Event "13th KIIT Festival-A 2022"]
[Site "Bhubaneswar"]
[Date "2022.05.23"]
[Round "2.7"]
[White "Mirzoev, Azer"]
[Black "Ankit Ray"]
[Result "1-0"]
[ECO "E42"]
[WhiteElo "2476"]
[BlackElo "1932"]
[Annotator "TA"]
[PlyCount "75"]
[EventDate "2022.05.15"]
[EventType "swiss"]
[EventCountry "IND"]
[SourceTitle "playchess.com"]
[Source "ChessBase"]
[SourceQuality "1"]
[TimeControl "5400+30"]

{[%evp 12,75,30,0,0,0,7,0,6,6,50,32,41,29,77,70,85,69,63,43,100,90,81,75,116,116,118,104,113,104,104,97,106,76,142,153,147,148,188,184,225,229,213,216,242,240,369,225,229,228,275,279,306,306,341,337,345,331,331,313,412,416,427,427,413,379]} 1. c4 {[%emt 0:00:05]} Nf6 {[%emt 0:02:04]} 2. Nc3 {[%emt 0:00:05]} e6 {[%emt 0:02:00]} 3. d4 {[%emt 0:00:07]} Bb4 {[%emt 0:02:02]} 4. e3 {[%emt 0:00:19]} c5 {[%emt 0:02:07]} 5. Nge2 {[%emt 0:00:09]} b6 {[%emt 0:06:53][%cal Bb7b6,Bb6b5,Bb5c4][%mdl 32]} 6. a3 {[%emt 0:00:14]} Ba5 {[%emt 0:00:10]} 7. g3 {[%emt 0:02:34]} (7. Rb1 $5 {[%cal Rb2b4]} Qe7 8. d5 $11) 7... Bb7 {[%emt 0:01:23] Against Bg2. E42: Nimzo-Indian: Rubinstein: 4...c5 5 Ne2.} 8. d5 $1 {[%emt 0:00:24]} b5 {[%emt 0:00:05]} (8... exd5 9. Bg2 $14) 9. Bg2 {[%emt 0:00:20][%cal Bf1g2,Bg2d5,Bd5c4][%mdl 32] next b4 is good for White.} bxc4 {[%emt 0:01:31] White must now prevent ...Bxd5. The position is equal.} 10. O-O {[%emt 0:06:21]} exd5 {[%emt 0:06:50]} 11. Nxd5 {[%emt 0:00:26]} Nxd5 {[%emt 0:06:47]} 12. Bxd5 {[%emt 0:00:16] [#]} Bc6 $146 {[%emt 0:00:10]} (12... Nc6 $11) ({Predecessor:} 12... Qb6 13. e4 O-O 14. Be3 Nc6 15. Rb1 Nd4 16. Bxb7 Qxb7 17. Bxd4 cxd4 18. Qxd4 Rfe8 {½-½ (34) Odegov,A (2193)-Karavade,E (2365) Moscow 2019}) 13. Nf4 {[%emt 0:01:49]} O-O {[%emt 0:01:35]} 14. Bxc4 {[%emt 0:01:02][%cal Ob2b4]} Bc7 {[%emt 0:06:46]} 15. Nd5 {[%emt 0:02:15]} d6 {[%emt 0:04:37]} (15... Be5 $14) 16. Bd2 {[%emt 0:04:52]} Nd7 {[%emt 0:00:30]} 17. Bc3 {[%emt 0:00:19]} Bxd5 {[%emt 0:04:29]} 18. Bxd5 {[%emt 0:03:13]} ({Resist} 18. Qxd5 Nb6 19. Qd3 Nxc4 20. Qxc4 Qe7 $14) 18... Rb8 {[%emt 0:00:10]} 19. Qa4 {[%emt 0:03:18] Prevents Ba5.} Nf6 {[%emt 0:08:08]} 20. Bg2 {[%emt 0:04:27] White is much more active. This bishop pair is nice.} a5 {[%emt 0:07:43]} 21. Rfd1 {[%emt 0:00:33]} Qd7 {[%emt 0:02:58]} 22. Qh4 {[%emt 0:04:38]} Bd8 {[%emt 0:02:18]} (22... Qf5 $142) 23. Qf4 $16 {[%emt 0:00:31]} Be7 {[%emt 0:00:19]} 24. Rd2 {[%emt 0:01:15]} Qe6 {[%emt 0:07:30]} 25. Rad1 {[%emt 0:02:02][%cal Ba1d1,Bd1d2,Bd2d7][%mdl 32]} d5 {[%emt 0:06:47]} 26. Bxd5 {[%emt 0:01:24]} Nxd5 {[%emt 0:00:15]} 27. Rxd5 {[%emt 0:00:07]} Rb6 {[%emt 0:04:34]} 28. R1d2 $40 {[%emt 0:10:50][%mdl 128] [#] aiming for Re5. White has strong attack.} Qh3 {[%emt 0:02:03]} (28... f6 $142 29. Rd7 Rc8) 29. Qf5 {[%emt 0:03:08]} Qxf5 {[%emt 0:05:00]} 30. Rxf5 {[%emt 0:00:04]} a4 {[%emt 0:00:33]} 31. Rd7 {[%emt 0:03:24] Inhibits Rb7.} Bf6 {[%emt 0:01:43]} 32. Bxf6 {[%emt 0:00:27]} ({Don't do} 32. Rxc5 Bxc3 33. Rxc3 (33. bxc3 Rb3 $18) 33... h6 $18) 32... gxf6 {[%emt 0:00:06]} 33. Rxc5 {[%emt 0:00:13]} Rxb2 $18 {[%emt 0:00:07] KRR-KRR} 34. Ra5 {[%emt 0:01:04][%cal Bc5a5,Ba5a4,Ba4f4][%mdl 32]} Rc8 {[%emt 0:00:21]} 35. Rxa4 {[%emt 0:00:38]} h5 {[%emt 0:07:26]} 36. Rf4 {[%emt 0:02:06]} Kg7 {[%emt 0:00:00]} 37. Rd6 {[%emt 0:01:26]} Ra2 {[%emt 0:00:00]} 38. Rdxf6 {[%emt 0:00:47] White took control after the opening.  Weighted Error Value: White=0.11 (very precise) /Black=0.25 (precise)} 1-0

[Event "13th KIIT Festival-A 2022"]
[Site "Bhubaneswar"]
[Date "2022.05.23"]
[Round "2.8"]
[White "Chidvilash Sai Surapaneni"]
[Black "Stupak, Kirill"]
[Result "0-1"]
[ECO "A36"]
[WhiteElo "1912"]
[BlackElo "2440"]
[Annotator "TA"]
[PlyCount "84"]
[EventDate "2022.05.15"]
[EventType "swiss"]
[EventCountry "IND"]
[SourceTitle "playchess.com"]
[Source "ChessBase"]
[SourceQuality "1"]
[TimeControl "5400+30"]

{[%evp 11,84,-14,0,0,-4,-16,-9,-32,-23,-31,-23,-43,-34,-84,-81,-81,-78,-116,-104,-108,-101,-106,-106,-106,-75,-101,-82,-105,-112,-126,-129,-126,-97,-288,-265,-278,-264,-290,-318,-308,-310,-350,-350,-385,-406,-407,-370,-449,-426,-488,-510,-504,-500,-489,-472,-754,-757,-764,-802,-876,-862,-917,-899,-956,-956,-933,-932,-1045,-993,-29969,-29968,-29973,-29972,-1098,-1062]} 1. c4 {[%emt 0:00:05]} g6 {[%emt 0:00:21]} 2. Nc3 {[%emt 0:00:07]} Bg7 {[%emt 0:00:04]} 3. g3 {[%emt 0:00:36]} c5 {[%emt 0:00:23]} 4. Bg2 {[%emt 0:00:07]} Nc6 {[%emt 0:00:19]} 5. e4 {[%emt 0:01:05]} a6 {[%emt 0:02:18]} 6. Nge2 {[%emt 0:00:13]} b5 {[%emt 0:01:46]} 7. d3 {[%emt 0:06:10] A36: Symmetrical English vs ...g6: 4 Bg2 Bg7.} Rb8 {[%emt 0:02:19]} 8. O-O {[%emt 0:03:41]} d6 {[%emt 0:01:20]} 9. h3 {[%emt 0:10:27] The position is equal.} e6 {[%emt 0:02:45]} 10. f4 {[%emt 0:10:35]} Nge7 {[%emt 0:01:43]} 11. Kh2 {[%emt 0:15:46]} O-O {[%emt 0:03:39] [#]} 12. Qd2 $146 {[%emt 0:12:25]} (12. Rb1 $15) ({Predecessor:} 12. Ng1 bxc4 13. dxc4 Nd4 14. Qd3 Nec6 15. a3 Nb3 16. Rb1 Nxc1 17. Rfxc1 Rb3 18. Qd1 {0-1 (29) Brdar,A (1624)-Knoblauch,L (2114) Augsburg 2013}) 12... Na5 $17 {[%emt 0:04:33]} 13. Rb1 {[%emt 0:06:35]} bxc4 {[%emt 0:00:58]} 14. d4 {[%emt 0:11:10]} cxd4 {[%emt 0:06:07]} 15. Nxd4 {[%emt 0:00:32]} Qb6 {[%emt 0:00:10]} 16. Rd1 {[%emt 0:00:37]} Rd8 {[%emt 0:00:52]} 17. Nde2 {[%emt 0:05:50]} Nec6 {[%emt 0:04:21][%cal Be7c6,Bc6b4,Bb4c2][%mdl 32]} 18. Qe3 {[%emt 0:01:38]} Qc7 {[%emt 0:03:16]} 19. Bd2 {[%emt 0:03:24]} Nb4 {[%emt 0:01:05]} 20. a3 {[%emt 0:04:46]} Nc2 {[%emt 0:01:51]} 21. Qf2 {[%emt 0:00:22]} Nb3 {[%emt 0:00:29] Inhibits Rdc1. Hoping for ...Qc5. 0x0.000a5ab1dee9dp-1022s more active pieces.} 22. Be3 {[%emt 0:00:08] [#] Against Qc5. This move loses the game for White.} (22. f5 $17) 22... Nxe3 $19 {[%emt 0:01:09]} 23. Qxe3 {[%emt 0:00:02]} Qc5 {[%emt 0:00:49]} 24. Qf3 {[%emt 0:01:58]} Bb7 {[%emt 0:00:45]} 25. Nc1 {[%emt 0:00:32]} Bc6 {[%emt 0:01:47]} ({Don't blunder} 25... Nd4 $2 26. Qe3 $19) 26. N1a2 {[%emt 0:01:59]} a5 {[%emt 0:00:20]} 27. Qe2 {[%emt 0:00:07]} d5 {[%emt 0:03:16] Threatens to win with ...d4.} 28. e5 {[%emt 0:01:06]} Qb6 {[%emt 0:01:09]} 29. h4 {[%emt 0:00:42]} Nd4 {[%emt 0:01:56]} 30. Qf2 {[%emt 0:01:24]} Nf5 {[%emt 0:00:06][%cal Bd4f5,Bf5h4,Bh4g6,Bg6f4,Bf4d3,Bd3b2][%mdl 32]} 31. Qxb6 {[%emt 0:00:30]} Rxb6 {[%emt 0:00:01]} 32. Rd2 {[%emt 0:00:24]} Rdb8 {[%emt 0:00:46]} 33. g4 {[%emt 0:00:39]} (33. a4 $142) 33... Nxh4 {[%emt 0:00:13]} 34. Bh1 {[%emt 0:00:02]} g5 {[%emt 0:00:04]} 35. fxg5 {[%emt 0:01:22]} Bxe5+ {[%emt 0:00:02]} 36. Kh3 {[%emt 0:00:01]} Ng6 {[%emt 0:00:01]} 37. Rc2 {[%emt 0:01:09]} Nf4+ {[%emt 0:00:26]} 38. Kh4 {[%emt 0:00:02]} Nd3 {[%emt 0:00:01]} 39. Nd1 {[%emt 0:00:15]} Nxb2 {[%emt 0:00:27]} 40. Nxb2 {[%emt 0:00:02]} Rxb2 {[%emt 0:00:10]} 41. Rbxb2 {[%emt 0:00:07]} Rxb2 {[%emt 0:00:05]} 42. Rxb2 {[%emt 0:00:07]} Bxb2 {[%emt 0:00:04] Weighted Error Value: White=0.58/Black=0.04 (flawless)} 0-1